Workbook

Sheet Français
B2: Calculateur pour Antenne a Fente
D3: from W1GHZ modifs F1CHF (Mai 2008)
A5: Parametres | S5: Standard WG sizes | T5: Width | U5: Height
N6: =G21 -> 8.892415252 | S6: Pick from list | T6: 0 | U6: 0
A7: ENTREZ vos Paramétres dans les cases jaunes (résultats dans les cases Vertes) | J7: Choisir guide d'ondes ordinaire | N7: ou | S7: WG10 / WR284 | T7: 72.14 | U7: 34.04
A8: Frequence | D8: 10.686 | J8: WG16 / WR90 | N8: =G22 -> 26.67724575 | S8: WG11A / WR229 | T8: 58.17 | U8: 29.08
A9: Dimensions INTERNES grand coté | G9: =IF(D9="",(VLOOKUP($J$8,$S$6:$U$16,2,FALSE)),D9) -> 22.86 | S9: WG12 / WR187 | T9: 47.55 | U9: 22.15
A10: Dimensions INTERNES petit coté | G10: =IF(D10="",(VLOOKUP($J$8,$S$6:$U$16,3,FALSE)),D10) -> 10.16 | S10: WG13 / WR159 | T10: 40.39 | U10: 20.19
A11: Nombre TOTAL de fentes | D11: 22 | E11: =IF(D12="Yes",1,2) -> 2 | F11: =IF(Cotes=1,"coté","cotés") -> cotés | S11: WG14 / WR137 | T11: 34.84 | U11: 15.8
A12: Seul côté? | D12: Non | L12: =G18 -> 13.59705024 | S12: WG15 / WR112 | T12: 28.5 | U12: 12.62
A13: Estimation des Performances | B13: Gain = | D13: =10 * LOG((Nslots/Cotes) * lam_guide/lam_zero) -> 11.44166326 | G13: Beamwidth= | I13: =50.7 * lam_zero/((Nslots_en/Cotes)*(lam_guide/2)) -> 10.00401483 | J13: deg | S13: WG16 / WR90 | T13: 22.86 | U13: 10.16
S14: WG17 / WR75 | T14: 19.05 | U14: 9.53
A15: RESULTATS des CALCULS : | S15: WG20 / WR42 | T15: 10.67 | U15: 4.32
B16: old from KB7TRZ | G16: improved from Elliott | S16: ... | T16: 0 | U16: 0
A17: Offset from centerline | B17: =Slot_disp -> 1.956453788 | C17: mm | G17: =New_slot_disp -> 2.15471639 | H17: mm | O17: =G20 -> 17.7848305
A18: Longeur de la fente | B18: =lam_zero/2 -> 14.03705783 | C18: mm | G18: =New_slot_len -> 13.59705024 | H18: mm | L18: =G19 -> 1.5875
A19: Largeur de la fente | B19: =lam_guide/20 -> 1.77848305 | C19: mm | G19: =((WG_a/25.4)*0.0625/0.9)*25.4 -> 1.5875 | H19: mm | L19: =G17 -> 2.15471639 | S19: Non
A20: Slot spacing center to center | B20: =lam_guide/2 -> 17.7848305 | C20: mm | G20: =lam_guide/2 -> 17.7848305 | H20: mm | S20: Oui
A21: End space = 1/4 wave | B21: =lam_guide/4 -> 8.892415252 | C21: mm | G21: =lam_guide/4 -> 8.892415252 | H21: mm
A22: End space = 3/4 wave | B22: =3*lam_guide/4 -> 26.67724575 | C22: mm | G22: =3*lam_guide/4 -> 26.67724575 | H22: mm
A23: End space = distance entre haut (fermé ou avec charge) et l'axe de la derniere fente | S23: Fully round end slots
S24: Rounded corners on slot ends
A25: Wavelength - free space (Lo) | B25: =300/FGhz -> 28.07411567 | C25: mm
A26: Wavelength - cutoff | B26: =2*WG_a -> 45.72 | C26: mm | D26: frequence basse = | G26: =(300/lam_cutoff)*1.2 -> 7.874015748 | H26: ghz
A27: Guide wavelength (Lg) | B27: =1/SQRT(((1/lam_zero)^2)-((1/lam_cutoff)^2)) -> 35.56966101 | C27: mm
L28: Minimum | M28: =B27 -> 35.56966101
A30: INTERMEDIATE TERMS -- ne pas toucher !
A31: Gslot | B31: =1/Nslots -> 0.04545454545 | G31: =1/Nslots -> 0.04545454545 | H31: enter taper admittance here
A32: G1 | B32: =2.09*(lam_guide/lam_zero)*(WG_a/WG_b)*(COS(PI()*lam_zero/2/lam_guide)^2) -> 0.6293165844 | G32: =2.09*(lam_guide/lam_zero)*(WG_a/WG_b)*(COS(0.464*PI()*lam_zero/lam_guide)-COS(0.464*PI()))^2 -> 0.5190467401 | L32: =B55 -> 4.446207626
A33: Y | B33: =G_slot/G_1 -> 0.07222842458 | G33: =G_2_slot/New_G1 -> 0.08757312578 | L33: ou
L34: =D55 -> 8.892415252
A35: Offset calculation: Mathcad from KB7TRZ: | G35: New offset calc from Elliott:
A36: OFFSET | B36: =(WG_a/PI())*SQRT(ASIN(Y)) -> 1.956453788 | C36: mm | G36: =(WG_a/PI())*SQRT(ASIN(New_Y)) -> 2.15471639 | H36: mm
A37: CORRECTED OFFSET **
B38: =(WG_a/PI())*ASIN(SQRT(Y)) -> 1.979943231 | C38: mm | D38: =B38/25.4 -> 0.0779505209 | E38: inches | G38: =(WG_a/PI())*ASIN(SQRT(New_Y)) -> 2.186072179 | H38: mm | I38: =G38/25.4 -> 0.08606583383 | J38: inch | L38: Minimum | M38: =B27 -> 35.56966101
A40: Offset calculation: BASIC from W6OYJ:
A41: AG | B41: =ATAN(Y/SQRT(1-Y^2)) -> 0.07229137443 | C41: mm
A42: Offset | B42: =(WG_a/PI())*SQRT(AG) -> 1.956453788 | C42: mm | O42: =B54 -> 4.268359321
O43: ou
A44: Slot Length Calculation from Stegen curves: | O44: =D54 -> 22.05318982
A45: Slot in wavelengths | G45: =0.210324*G_2_slot^4-0.338065*G_2_slot^3+0.12712*G_2_slot^2+0.034433*G_2_slot+0.48253 -> 0.4843269297
A46: Slot Length | G46: =lam_zero*Slot_wl -> 13.59705024 | H46: mm
N47: diam | O47: =B52 -> 0.9603808472 | P47: mm
A48: * Correction tested on CNC machining and measurement by Dan Welch W6DFW
A49: ** correction from Petr Kauler kauler@volzny.cz
A51: calculs pour le PROBE | G51: FORMULES :
A52: diamètre du probe(diam) | B52: =lam_guide*0.027 -> 0.9603808472 | C52: mm | G52: Diamètre du probe = 0,027 Lg | O52: =B53 -> 5.691145761 | P52: mm
A53: longueur du probe (long) | B53: =lam_guide*0.16 -> 5.691145761 | C53: mm | G53: Longueur du probe = 0,160 Lg
A54: distance par rapport au fond | B54: =lam_guide*0.12 -> 4.268359321 | C54: mm | D54: =lam_guide*0.62 -> 22.05318982 | E54: mm | G54: Distance du fond = 0,120 Lg (ou 0,620 Lg)
A55: espacement vis de réglages | B55: =lam_guide/8 -> 4.446207626 | C55: mm | D55: =lam_guide/4 -> 8.892415252 | E55: mm | G55: Match = 3 vis espacées de Lg/8 ou Lg/4
A56: longueur MAXI de l'antenne | B56: =G22+(G20*((D11/2)-1))+(G18/2)+B27+(2*D55)+B27+D54 -> 322.3014182 | C56: mm | G56: taille MAXI avec les plus grandes cotes
A57: longueur MINI de l'antenne | B57: =G21+(G20*((D11/2)-1))+(G18/2)+B27+(2*B55)+B27+B54 -> 277.839342 | C57: mm | G57: a vous de calculer pour optimiser la facture !
A58: le fond peut être réglable ainsi que le haut de l'antenne, mais en tout état de cause , les extrémités sont closes !
A59: il semble conseillé de prolonger le bas de l'antenne et de coller une cale pour faciliter les réglages

Sheet English
B2: Slotted Waveguide Antenna Calculator
D3: from W1GHZ modifs F1CHF (Mai 2008)
D4: Modifications translated by GM4ISM and added standard WG selection
A5: Parameters | D5: Added Single face selection and estimated correction for slot ends with macro driven graphic changes (2020) | S5: Standard WG sizes | T5: Width | U5: Height
N6: =ROUND(E21,2) -> 19.6 | S6: Pick from list | T6: 0 | U6: 0
A7: ENTER your parameters in Yellow cells, results in Green cells | E7: WG Dimension will be red is not suited to the frequency | J7: Pick Standard Waveguide | N7: or | S7: WG10 / WR284 | T7: 72.14 | U7: 34.04
A8: Frequency | D8: 5.7601 | G8: Dimensions for calculations | J8: WG14 / WR137 | N8: =ROUND(E22,3) -> 58.8 | S8: WG11A / WR229 | T8: 58.17 | U8: 29.08
A9: Waveguide intenal dimensions, broad face | B9: Enter here or | G9: =IF(D9="",(VLOOKUP($J$8,$S$6:$U$16,2,FALSE)),D9) -> 34.84 | S9: WG12 / WR187 | T9: 47.55 | U9: 22.15
A10: Waveguide intenal dimensions, narrow face | B10: pick Standard | G10: =IF(D10="",(VLOOKUP($J$8,$S$6:$U$16,3,FALSE)),D10) -> 15.8 | S10: WG13 / WR159 | T10: 40.39 | U10: 20.19
A11: TOTAL number of slots | D11: 16 | E11: =IF(D12="Yes",1,2) -> 1 | F11: =IF(Faces=1,"face","faces") -> face | S11: WG14 / WR137 | T11: 34.84 | U11: 15.8
A12: Single face? | D12: Yes | L12: =ROUND(J18,3) -> 24.76 | S12: WG15 / WR112 | T12: 28.5 | U12: 12.62
A13: Performance estimates | B13: Gain = | D13: =10 * LOG((Nslots_en/Faces) * lam_guide_en/lam_zero_en) -> 13.81745111 | G13: Vertical Beamwidth= | H13: =50.7 * lam_zero_en/((Nslots_en/Faces)*(lam_guide_en/2)) -> 4.210104189 | I13: deg | S13: WG16 / WR90 | T13: 22.86 | U13: 10.16
S14: WG17 / WR75 | T14: 19.05 | U14: 9.53
A15: Calculation Results | H15: Subtract | I15: =VLOOKUP(J15,S23:T25,2,FALSE) -> 2 | J15: Square end slots | S15: WG20 / WR42 | T15: 10.67 | U15: 4.32
B16: old from KB7TRZ | E16: improved from Elliott | J16: =IF(J15="Rounded corners on slot ends","based on radius 2/5 slot width","") ->  | S16: ... | T16: 0 | U16: 0
A17: Offset from centerline | B17: =slot_disp_en -> 2.092100028 | C17: mm | E17: =New_slot_disp_en -> 2.320020472 | F17: mm | G17: =$E17/25.4 -> 0.09133938866 | H17: inch | J17: corrected for slot end shape | O17: =ROUND(E20,2) -> 39.2
A18: Slot Length | B18: =lam_zero_en/2 -> 26.04121456 | C18: mm | E18: =New_slot_len_en -> 25.26514985 | F18: mm | G18: 0.9946909391 | H18: inch | J18: =E18*((100-I15)/100) -> 24.75984686 | L18: =ROUND(E19,2) -> 2.42
A19: Slot Width | B19: =lam_guide_en/20 -> 3.920002686 | C19: mm | E19: =((WG_a_en/25.4)*0.0625/0.9)*25.4 -> 2.419444444 | F19: mm | G19: 0.09525371829 | H19: inch | S19: No
A20: Slot spacing center to center | B20: =lam_guide_en/2 -> 39.20002686 | C20: mm | E20: =lam_guide_en/2 -> 39.20002686 | F20: mm | G20: 1.543308144 | H20: inch | L20: =ROUND(G38,2) -> 2.34 | S20: Yes
A21: End space = 1/4 wave | B21: =lam_guide_en/4 -> 19.60001343 | C21: mm | E21: =lam_guide_en/4 -> 19.60001343 | F21: mm | G21: 0.771654072 | H21: inch
A22: End space = 3/4 wave | B22: =3*lam_guide_en/4 -> 58.80004029 | C22: mm | E22: =3*lam_guide_en/4 -> 58.80004029 | F22: mm | G22: 2.314962216 | H22: inch
A23: End space is from shorted end to center of last slot | E23: Assumes round ended slots, radius = slot width | S23: Square end slots | T23: 2
H24: =100+2 -> 102 | S24: Rounded corners on slot ends | T24: 1.4
A25: Wavelength - free space (Lo) | B25: =300/FGhz_en -> 52.08242912 | C25: mm | S25: Rounded ends | T25: 0
A26: Wavelength - cutoff | B26: =2*WG_a_en -> 69.68 | C26: mm | D26: Minimum frequency = | G26: =(300/lam_cutoff_en)*1.2 -> 5.166475316 | H26: GHz
A27: Guide wavelength (Lg) | B27: =1/SQRT(((1/lam_zero_en)^2)-((1/lam_cutoff_en)^2)) -> 78.40005371 | C27: mm
A28: Overmode (2x f cutoff) | G28: =2*G26 -> 10.33295063 | H28: GHz | L28: =ROUND(B27,1) -> 78.4 | M28: min
A30: INTERMEDIATE TERMS --do not touch !
A31: Gslot | B31: =1/Nslots_en -> 0.0625 | G31: =1/Nslots_en -> 0.0625 | H31: enter taper admittance here
A32: G1 | B32: =2.09*(lam_guide_en/lam_zero_en)*(WG_a_en/WG_b_en)*(COS(PI()*lam_zero_en/2/lam_guide_en)^2) -> 1.756561471 | G32: =2.09*(lam_guide_en/lam_zero_en)*(WG_a_en/WG_b_en)*(COS(0.464*PI()*lam_zero_en/lam_guide_en)-COS(0.464*PI()))^2 -> 1.428537281 | L32: =ROUND(B55,1) -> 9.8
A33: Y | B33: =G_slot_en/G_1_en -> 0.03558087834 | G33: =G_2_slot_en/New_G1_en -> 0.0437510458 | L33: or
L34: =ROUND(D55,1) -> 19.6
A35: Offset calculation: Mathcad from KB7TRZ: | G35: New offset calc from Elliott:
A36: OFFSET | B36: =(WG_a_en/PI())*SQRT(ASIN(Y_en)) -> 2.092100028 | C36: mm | G36: =(WG_a_en/PI())*SQRT(ASIN(New_Y_en)) -> 2.320020472 | H36: mm | I36: =$G36/25.4 -> 0.09133938866 | J36: inch
A37: CORRECTED OFFSET **
B38: =(WG_a_en/PI())*ASIN(SQRT(Y_en)) -> 2.104487306 | C38: mm | D38: =B38/25.4 -> 0.08285383094 | E38: inches | G38: =(WG_a_en/PI())*ASIN(SQRT(New_Y_en)) -> 2.33690664 | H38: mm | I38: =G38/25.4 -> 0.09200419844 | J38: inch | L38: =ROUND(B27,1) -> 78.4 | M38: min
A40: Offset calculation: BASIC from W6OYJ:
A41: AG | B41: =ATAN(Y_en/SQRT(1-Y_en^2)) -> 0.03558839018 | C41: mm
A42: Offset | B42: =(WG_a_en/PI())*SQRT(AG_en) -> 2.092100028 | C42: mm | O42: =ROUND(B54,1) -> 9.4
O43: or
A44: Slot Length Calculation from Stegen curves: | O44: =D54 -> 48.6
A45: Slot in wavelengths | G45: =0.210324*G_2_slot_en^4-0.338065*G_2_slot_en^3+0.12712*G_2_slot_en^2+0.034433*G_2_slot_en+0.48253 -> 0.4850992989
A46: Slot Length | G46: =lam_zero_en*slot_wl_en -> 25.26514985 | H46: mm
A47: * Correction tested on CNC machining and measurement by Dan Welch W6DFW | N47: diam | O47: =B52 -> 2.11680145 | P47: mm
A48: ** correction from Petr Kauler kauler@volzny.cz
R49: Distance from short = 0.12 lg (or 0.62 lg)
A51: PROBE calculations | G51: FORMULAE :
A52: diameter of probe(diam) | B52: =lam_guide_en*0.027 -> 2.11680145 | C52: mm | G52: Probe diamater = 0.027 lg
A53: lenght of probe (len) | B53: =lam_guide_en*0.16 -> 12.54400859 | C53: mm | G53: Probe length = 0.16 lg | O53: =B53 -> 12.54400859 | P53: mm
A54: distance to short circuit end | B54: =lam_guide_en*0.12 -> 9.408006446 | C54: mm | D54: =(ROUND(lam_guide_en*0.62,1)) -> 48.6 | E54: mm | G54: Distance from short = 0.12 lg (or 0.62 lg)
A55: matching screw spacing | B55: =lam_guide_en/8 -> 9.800006714 | C55: mm | D55: =(ROUND(lam_guide_en/4,1)) -> 19.6 | E55: mm | G55: Matching = 3 screws spaced lg/8 or lg/4
A56: Total length of antenna with long ends | B56: =E22+(E20*((D11/2)-1))+(E18/2)+B27+(2*D55)+B27+D54 -> 590.4329106 | C56: mm
A57: Minimum length of guide required ( short ends) | B57: =E21+(E20*((D11/2)-1))+(E18/2)+B27+(2*B55)+B27+B54 -> 492.4409037 | C57: mm
A58: Top and bottom may have adjustable shorts, but must not be left open
A59: It may be wise to extend the length of the guide at the base of the antenna to facilitate mounting
